bitfinex/quotes_SOLUSD_20240622
["timestamp","ask_amount","ask_price","bid_price","bid_amount"]
[1719052431568,6.51,134.3,134.29,8.00619835]
[1719052432156,21.4265,134.35,134.29,8.00619835]
[1719052432366,26.51,134.34,134.29,21.96249835]
[1719052432673,20.0,134.34,134.29,15.45249835]
[1719052432853,26.51,134.34,134.29,15.45249835]
[1719052433373,33.9538,134.34,134.29,15.45249835]
[1719052434062,13.9543,134.33,134.29,8.00619835]
[1719052434371,6.51,134.32,134.29,8.00619835]
[1719052437367,13.9543,134.33,134.29,8.00619835]
[1719052439170,6.51,134.33,134.29,8.00619835]
[1719052440259,13.9544,134.33,134.29,8.00619835]
[1719052440681,7.4444,134.33,134.29,8.00619835]
[1719052440857,13.9544,134.33,134.29,8.00619835]
[1719052442075,13.9524,134.37,134.31,13.9549]
[1719052442284,26.51,134.36,134.31,13.9549]
[1719052442583,26.51,134.36,134.31,7.4449]
[1719052442769,20.0,134.36,134.31,7.4449]
[1719052442968,26.51,134.36,134.31,7.4449]
[1719052443186,20.0,134.36,134.31,7.4449]
[1719052443376,26.51,134.36,134.32,7.4447]
[1719052443767,13.9536,134.35,134.3,22.609]
[1719052444781,13.9536,134.35,134.3,30.0548]
[1719052445579,7.444,134.34,134.3,16.099]
[1719052445786,13.9539,134.34,134.29,8.00619835]
[1719052445967,20.0,134.36,134.29,14.51619835]
[1719052446167,6.51,134.35,134.32,7.4445]
[1719052446482,6.51,134.35,134.3,6.51]
[1719052446660,6.51,134.35,134.31,7.4453]
[1719052446861,6.51,134.35,134.3,13.9557]
[1719052447483,13.9534,134.35,134.3,13.9557]
[1719052447677,13.9534,134.35,134.3,6.51]
[1719052447909,7.4439,134.34,134.29,21.96249835]
[1719052448081,13.9539,134.34,134.29,21.96249835]
[1719052448695,6.51,134.33,134.29,8.00619835]
[1719052448893,13.9552,134.32,134.29,8.00619835]
[1719052449486,6.51,134.32,134.29,8.00619835]
[1719052449986,13.9545,134.33,134.29,8.00619835]
[1719052450169,7.4449,134.32,134.29,8.00619835]
[1719052451969,13.9545,134.33,134.29,8.00619835]
[1719052452577,18.6085,134.35,134.29,8.00619835]
[1719052452578,13.956,134.3,134.29,8.00619835]
[1719052453160,7.446,134.3,134.29,8.00619835]
[1719052454386,7.4456,134.31,134.29,8.00619835]
[1719052454978,6.51,134.3,134.29,8.00619835]
[1719052456179,18.6062,134.37,134.29,8.00619835]
[1719052456381,6.51,134.34,134.29,8.00619835]
[1719052456582,7.4445,134.33,134.29,8.00619835]
[1719052457091,7.444,134.34,134.29,15.45259835]
[1719052457297,20.0,134.36,134.29,14.51619835]
[1719052457594,7.443,134.36,134.31,7.4453]
[1719052457770,13.9532,134.35,134.3,7.4459]
[1719052458889,6.51,134.34,134.3,7.4459]
[1719052461998,7.4432,134.35,134.3,7.4459]
[1719052462198,6.51,134.34,134.3,7.4459]
[1719052463378,6.51,134.34,134.31,7.4453]
[1719052469004,6.51,134.35,134.32,7.4448]
[1719052470296,6.51,134.35,134.31,7.4453]
[1719052470885,6.51,134.34,134.31,7.4453]
[1719052472222,7.4426,134.36,134.31,7.4453]
[1719052472507,6.51,134.34,134.31,7.4453]
[1719052473516,6.51,134.35,134.31,7.4453]
[1719052476014,6.51,134.34,134.31,7.4453]
[1719052476514,7.4426,134.36,134.31,7.4453]
[1719052476694,7.4423,134.37,134.32,7.4449]
[1719052477097,6.51,134.35,134.32,7.4449]
[1719052477597,6.51,134.35,134.31,7.4452]
[1719052478917,6.51,134.34,134.31,7.4452]
[1719052479098,7.4426,134.36,134.31,7.4452]
[1719052479297,6.51,134.34,134.31,7.4452]
[1719052480192,6.51,134.34,134.32,7.4448]
[1719052481007,7.4423,134.37,134.32,7.4448]
[1719052481305,6.51,134.34,134.32,7.4448]
[1719052482404,6.51,134.34,134.29,8.00619835]
[1719052482718,6.51,134.33,134.29,15.45229835]
[1719052483621,6.51,134.33,134.3,7.4458]
[1719052487129,6.51,134.33,134.29,8.00619835]
[1719052488713,92.9802,134.38,134.29,8.00619835]
[1719052488714,6.51,134.34,134.3,1.12859263]
[1719052489829,6.51,134.35,134.3,1.12859263]
[1719052490233,22.1213,134.38,134.3,1.12859263]
[1719052490530,6.51,134.35,134.32,7.4448]
[1719052490719,6.618,134.41,134.33,7.4439]
[1719052490913,6.51,134.38,134.33,7.4439]
[1719052491115,27.4406,134.4,134.32,25.1221]
[1719052491335,6.51,134.38,134.34,7.4433]
[1719052491709,6.51,134.38,134.33,7.4441]
[1719052492331,13.9515,134.38,134.33,7.4441]
[1719052493628,13.9515,134.38,134.32,13.9546]
[1719052493836,6.51,134.37,134.32,13.9546]
[1719052496047,13.9521,134.37,134.32,13.9546]
[1719052496344,13.9521,134.37,134.32,7.4446]
[1719052497037,6.51,134.36,134.32,7.4446]
[1719052498035,13.953,134.36,134.31,7.4452]
[1719052498245,6.51,134.35,134.31,7.4452]
[1719052498419,13.9533,134.35,134.3,29.7696]
[1719052500026,6.51,134.35,134.31,7.4453]
[1719052501935,6.51,134.35,134.32,7.4448]
[1719052502136,6.51,134.36,134.32,7.4448]
[1719052502641,6.51,134.36,134.31,7.4452]
[1719052502940,6.51,134.36,134.32,7.4447]
[1719052503426,6.51,134.36,134.32,7.4445]
[1719052503616,6.51,134.36,134.31,7.4452]
[1719052506844,6.51,134.36,134.32,7.4447]
[1719052511845,6.51,134.35,134.31,7.4452]
[1719052512861,6.51,134.35,134.32,7.4448]
[1719052514166,6.51,134.36,134.33,7.4442]
[1719052514538,15.3457,134.38,134.31,6.51]
[1719052514747,6.51,134.39,134.34,6.51]
[1719052514950,6.51,134.39,134.36,7.4424]
[1719052515528,14.058,134.41,134.36,7.4424]
[1719052515735,6.51,134.39,134.36,7.4424]
[1719052516340,15.7955,134.42,134.34,18.6081]
[1719052516541,6.51,134.41,134.36,6.51]
[1719052517651,6.51,134.41,134.37,7.4419]
[1719052519848,6.51,134.41,134.36,7.4424]
[1719052519849,13.95,134.41,134.36,7.4424]
[1719052520040,6.51,134.4,134.36,7.4424]
[1719052520432,6.51,134.39,134.35,7.443]
[1719052523548,6.51,134.39,134.36,7.4425]
[1719052527872,6.51,134.39,134.34,16.1268]
[1719052528044,6.51,134.37,134.31,16.1268]
[1719052528251,7.4414,134.39,134.32,6.51]
[1719052528447,7.4414,134.39,134.31,22.6368]
[1719052528448,6.51,134.37,134.31,22.6368]
[1719052529774,6.51,134.37,134.34,7.4437]
[1719052533963,6.51,134.37,134.35,7.4431]
[1719052534367,6.51,134.38,134.35,7.4431]
[1719052535977,6.51,134.38,134.34,7.4435]
[1719052538561,6.51,134.39,134.34,7.4435]
[1719052538772,12.947,134.4,134.35,7.4429]
[1719052539074,12.947,134.4,134.36,7.4426]
[1719052540157,20.3875,134.4,134.35,13.9531]
[1719052541982,7.4411,134.39,134.35,6.51]
[1719052542156,7.4411,134.39,134.34,13.9535]
[1719052548390,13.9511,134.39,134.34,13.9535]
[1719052549188,13.9511,134.39,134.34,6.51]
[1719052550083,7.4415,134.38,134.34,6.51]
[1719052550971,13.9511,134.39,134.33,7.4441]
[1719052551177,13.9511,134.39,134.34,6.51]
[1719052551597,13.8776,134.4,134.35,6.51]
[1719052552100,13.8776,134.4,134.35,13.9531]
[1719052552299,7.4411,134.39,134.35,6.51]
[1719052552467,7.4416,134.38,134.34,6.51]
[1719052552667,7.4416,134.38,134.33,13.9541]
[1719052554372,13.951,134.39,134.34,7.4437]
[1719052556978,6.51,134.39,134.34,7.4437]
[1719052557187,6.51,134.39,134.35,7.4432]
[1719052558992,15.4249,134.38,134.29,32.71649835]
[1719052559174,15.4249,134.38,134.3,6.51]
[1719052559175,6.51,134.36,134.3,6.51]
[1719052559382,6.51,134.36,134.29,32.71649835]
[1719052559579,6.51,134.36,134.3,6.51]
[1719052559786,22.8666,134.38,134.33,7.4439]
[1719052559787,6.51,134.37,134.33,7.4439]
[1719052561176,15.4249,134.38,134.33,7.4439]
[1719052561380,21.9349,134.38,134.34,7.4437]
[1719052561890,6.51,134.37,134.33,7.4441]
[1719052562976,6.51,134.37,134.32,7.4447]
[1719052564199,6.51,134.37,134.33,7.4443]
[1719052568495,22.8668,134.38,134.33,7.4443]
[1719052568687,6.51,134.36,134.33,7.4443]
[1719052569011,6.51,134.37,134.33,7.4443]
[1719052570705,7.4452,134.32,134.29,8.00619835]
[1719052570889,6.51,134.3,134.29,8.00619835]
[1719052571384,28.4114,134.3,134.29,8.00619835]
[1719052571709,48.4114,134.3,134.29,8.00619835]
[1719052582332,93.4114,134.3,134.29,8.00619835]
[1719052582895,94.24387905,134.3,134.29,8.00619835]
[1719052587615,112.85887905,134.3,134.29,8.00619835]
[1719052588795,106.34887905,134.3,134.29,8.00619835]
[1719052589003,112.85887905,134.3,134.29,8.00619835]
[1719052590116,112.85887905,134.3,134.22,7.4503]
[1719052590117,18.6186,134.28,134.2,6.51]
[1719052590326,13.9589,134.25,134.2,13.9615]
[1719052591026,13.9589,134.25,134.2,7.4515]
[1719052591199,7.4494,134.24,134.19,22.5065]
[1719052591399,13.9594,134.24,134.19,29.0165]
[1719052592317,13.9594,134.24,134.19,22.5065]
[1719052592625,13.9594,134.24,134.19,29.0165]
[1719052593116,20.0,134.27,134.2,7.4511]
[1719052593309,6.51,134.25,134.2,7.4511]
[1719052594126,6.51,134.25,134.2,13.9611]
[1719052595001,6.51,134.25,134.19,22.5066]
[1719052595002,7.4494,134.24,134.19,22.5066]
[1719052595221,7.4494,134.24,134.19,29.0166]
[1719052595603,13.9589,134.25,134.2,7.4515]
[1719052596636,6.51,134.25,134.2,7.4515]
[1719052597210,13.9588,134.25,134.2,7.4515]
[1719052597507,6.51,134.24,134.2,7.4515]
[1719052597706,6.51,134.24,134.19,22.5064]
[1719052598132,6.51,134.24,134.2,7.4515]
[1719052598303,20.0,134.27,134.19,15.0546]
[1719052598304,7.4505,134.22,134.19,15.0546]
[1719052598501,6.51,134.23,134.19,15.0546]
[1719052598802,13.96,134.23,134.18,7.4523]
[1719052599018,6.51,134.23,134.19,7.4519]
[1719052601718,6.51,134.22,134.19,7.4519]
[1719052602817,6.51,134.23,134.19,7.4519]
[1719052603023,6.51,134.24,134.2,7.4514]
[1719052603612,6.51,134.24,134.21,7.4509]
[1719052603918,16.1895,134.26,134.22,7.4504]
[1719052604123,20.0,134.25,134.22,7.4504]
[1719052604325,20.0,134.25,134.21,7.4507]
[1719052604708,26.51,134.25,134.21,7.4507]
[1719052605523,26.51,134.25,134.16,15.3372]
[1719052605725,20.0,134.25,134.21,7.4509]
[1719052605924,26.51,134.25,134.21,7.4509]
[1719052607835,26.51,134.25,134.2,7.4513]
[1719052608042,6.51,134.24,134.2,7.4513]
[1719052609935,6.51,134.21,134.15,7.4542]
[1719052610151,42.2087,134.25,134.14,7.4544]
[1719052610152,6.51,134.19,134.14,7.4544]
[1719052610516,6.51,134.19,134.14,13.9644]
[1719052610825,6.51,134.19,134.15,7.454]
[1719052611033,13.9617,134.2,134.15,7.454]
[1719052611336,6.51,134.19,134.15,7.454]
[1719052611922,7.4528,134.18,134.13,16.2050595]
[1719052612147,6.51,134.17,134.13,16.2050595]
[1719052612351,6.51,134.17,134.13,23.6603595]
[1719052614723,7.4528,134.18,134.13,23.6603595]
[1719052614929,6.51,134.17,134.13,23.6603595]
[1719052615947,18.6274,134.22,134.14,6.51]
[1719052616257,6.51,134.2,134.15,6.51]
[1719052616551,20.0,134.19,134.15,13.964]
[1719052616850,20.0,134.19,134.15,7.454]
[1719052618127,20.0,134.19,134.14,13.9646]
[1719052618326,13.9617,134.2,134.15,7.454]
[1719052619153,13.9617,134.2,134.14,13.9646]
[1719052619660,7.4521,134.19,134.14,13.9646]
[1719052621243,40.3322,134.2,134.13,0.8678595]
[1719052621449,7.4541,134.16,134.13,0.8678595]
[1719052622030,13.9634,134.17,134.13,0.8678595]
[1719052623049,13.9634,134.17,134.13,2.3565409]
[1719052623245,6.51,134.17,134.13,2.3565409]
[1719052623426,13.9628,134.18,134.13,2.3565409]
[1719052623638,7.4533,134.17,134.13,0.8678595]
[1719052624642,13.9633,134.17,134.13,0.8678595]
[1719052625438,6.51,134.16,134.13,0.8678595]
[1719052627542,13.9633,134.17,134.13,0.8678595]
[1719052628963,7.4533,134.17,134.13,0.8678595]
[1719052629249,13.9633,134.17,134.13,0.8678595]
[1719052629553,13.9638,134.16,134.13,0.8678595]
[1719052630360,6.51,134.16,134.13,0.8678595]
[1719052631555,20.0,134.19,134.13,0.8678595]
[1719052631556,7.4529,134.18,134.13,0.8678595]
[1719052631769,6.51,134.17,134.13,8.3232595]
[1719052633735,13.9629,134.18,134.13,14.8332595]
[1719052634859,13.9629,134.18,134.13,8.3232595]
[1719052635051,13.9632,134.17,134.13,0.8678595]
[1719052636369,6.51,134.17,134.13,8.3232595]
[1719052636564,34.5012,134.23,134.14,28.6083]
[1719052636749,7.4516,134.2,134.15,13.9639]
[1719052636943,7.4516,134.2,134.16,6.51]
[1719052637150,7.4516,134.2,134.15,7.4539]
[1719052637384,7.4522,134.19,134.15,6.51]
[1719052637849,7.4522,134.19,134.14,36.0629]
[1719052638079,6.51,134.19,134.14,23.22879008]
[1719052638265,6.51,134.19,134.14,29.5527]
[1719052638462,13.9621,134.19,134.14,29.5527]
[1719052638977,13.9621,134.19,134.14,36.0627]
[1719052639277,6.51,134.19,134.14,36.0627]
[1719052639476,6.51,134.19,134.14,13.9644]
[1719052639683,6.51,134.17,134.13,0.8678595]
[1719052640252,6.51,134.17,134.13,8.3229595]
[1719052641680,7.453,134.18,134.13,8.3229595]
[1719052641854,6.51,134.17,134.13,8.3229595]
[1719052642374,15.8752,134.23,134.15,7.4542]
[1719052642559,7.451,134.21,134.15,29.5283]
[1719052642765,6.51,134.2,134.15,29.5283]
[1719052642985,13.961,134.21,134.15,29.5283]
[1719052643587,13.961,134.21,134.16,3.90786681]
[1719052644078,13.9616,134.2,134.16,3.90786681]
[1719052644501,7.451,134.21,134.16,11.36146681]
[1719052644788,6.51,134.2,134.16,11.36146681]
[1719052645285,13.961,134.21,134.16,3.90786681]
[1719052645580,6.51,134.21,134.16,11.36126681]
[1719052646786,13.961,134.21,134.16,3.90786681]
[1719052647355,13.961,134.21,134.16,10.41786681]
[1719052649486,7.4518,134.2,134.15,15.5642]
[1719052649683,13.9618,134.2,134.15,22.0742]
[1719052650986,13.9618,134.2,134.15,29.5284]
[1719052651588,6.51,134.2,134.15,29.5284]
[1719052652705,6.51,134.2,134.15,23.0184]
[1719052652870,6.51,134.2,134.15,29.5284]
[1719052654488,6.51,134.2,134.15,15.5642]
[1719052654489,7.4517,134.2,134.15,15.5642]
[1719052654692,13.9617,134.2,134.15,15.5642]
[1719052654888,6.51,134.19,134.15,15.5642]
[1719052657390,6.51,134.19,134.15,23.0184]
[1719052657866,7.4505,134.22,134.16,7.4536]
[1719052658077,20.0,134.21,134.16,7.4536]
[1719052658799,6.51,134.2,134.16,7.4536]
[1719052659164,6.51,134.2,134.15,23.0183]
[1719052659369,6.51,134.2,134.15,29.5283]
[1719052659982,6.51,134.2,134.15,23.0183]
[1719052660898,6.51,134.2,134.16,7.4536]
[1719052662494,20.0,134.21,134.16,7.4536]
[1719052662997,6.51,134.2,134.15,29.5283]
[1719052664795,6.51,134.2,134.15,23.0183]
[1719052665295,13.9615,134.2,134.15,23.0183]
[1719052665504,7.4515,134.2,134.15,23.0183]
[1719052665798,13.9615,134.2,134.15,23.0183]
[1719052666695,6.51,134.2,134.15,23.0183]
[1719052667198,27.4511,134.21,134.15,23.0183]
[1719052667405,6.51,134.2,134.15,23.0183]
[1719052667697,6.51,134.2,134.16,7.4536]
[1719052667901,33.9611,134.21,134.16,7.4536]
[1719052670078,0.83247905,134.24,134.17,7.4531]
[1719052670274,8.25930904,134.26,134.17,7.4531]
[1719052670275,6.51,134.22,134.17,7.4531]
[1719052671698,13.9607,134.22,134.16,13.9635]
[1719052672287,6.51,134.21,134.16,13.9635]
[1719052672701,6.51,134.21,134.16,7.4535]
[1719052673185,6.51,134.21,134.17,7.4532]
[1719052674499,20.0,134.25,134.17,6.1311]
[1719052674701,20.0,134.25,134.18,6.51]
[1719052675021,6.51,134.23,134.18,6.51]
[1719052675700,6.51,134.23,134.19,7.4518]
[1719052675907,20.0,134.25,134.2,23.598]
[1719052676077,26.51,134.25,134.2,30.108]
[1719052676610,33.9588,134.25,134.2,30.108]
[1719052676907,33.9588,134.25,134.2,16.1466]
[1719052677277,7.4493,134.24,134.2,16.1466]
[1719052677481,20.0,134.23,134.2,16.1466]
[1719052677681,33.9589,134.25,134.2,16.1466]
[1719052677882,7.4482,134.27,134.21,13.5816]
[1719052678112,13.9582,134.27,134.21,20.0917]
[1719052680210,6.6206,134.3,134.21,12.6411]
[1719052680404,7.4472,134.28,134.22,6.51]
[1719052680626,7.4472,134.28,134.22,13.96]
[1719052680791,6.51,134.27,134.22,13.96]
[1719052681308,13.9578,134.27,134.22,13.96]
[1719052681487,7.4478,134.27,134.22,13.96]
[1719052681815,13.9578,134.27,134.22,6.51]
[1719052682398,7.4478,134.27,134.22,6.51]
[1719052682594,7.4484,134.26,134.22,6.51]
[1719052682792,7.4488,134.25,134.21,6.1311]
[1719052686311,13.9584,134.26,134.21,6.1311]
[1719052688011,13.9584,134.26,134.21,13.5819]
[1719052688516,6.51,134.26,134.22,7.4504]
[1719052688907,7.4473,134.28,134.22,7.4504]
[1719052689110,26.51,134.27,134.22,7.4504]
[1719052691000,33.9577,134.27,134.22,7.4504]
[1719052693518,33.9577,134.27,134.21,20.0918]
[1719052694324,7.4482,134.26,134.21,20.0918]
[1719052695599,33.9579,134.27,134.21,20.0918]
[1719052696902,7.4482,134.26,134.21,20.0918]
[1719052697217,13.9582,134.26,134.21,6.1311]
[1719052697398,7.4489,134.25,134.21,6.1311]
[1719052698123,13.9589,134.25,134.21,6.1311]
[1719052698492,7.4489,134.25,134.21,6.1311]
[1719052699810,13.9584,134.26,134.21,6.1311]
[1719052700727,13.9584,134.26,134.21,13.582]
[1719052703225,6.51,134.26,134.21,13.582]
[1719052703432,7.4478,134.27,134.22,7.4503]
[1719052703615,13.9578,134.27,134.21,12.6411]
[1719052704128,13.9578,134.27,134.22,7.4501]
[1719052705028,13.9578,134.27,134.22,8.2480683]
[1719052705419,13.9578,134.27,134.22,7.4501]
[1719052706124,13.9578,134.27,134.21,20.0919]
[1719052706603,13.9578,134.27,134.22,7.4503]
[1719052706809,7.4478,134.27,134.22,13.9603]
[1719052707008,13.9571,134.28,134.23,6.51]
[1719052708035,13.9571,134.28,134.22,7.4503]
[1719052708208,13.9571,134.28,134.22,13.9603]
[1719052708407,7.4467,134.29,134.23,22.7939]
[1719052708621,7.4472,134.28,134.23,29.3039]
[1719052708820,7.4478,134.27,134.23,21.8541]
[1719052709020,13.9578,134.27,134.23,15.3441]
[1719052709417,7.4483,134.26,134.23,15.3441]
[1719052711125,13.9578,134.27,134.21,20.0916]
[1719052711334,6.51,134.24,134.2,16.5052]
[1719052711834,6.3483,134.29,134.2,16.5052]
[1719052711835,13.9599,134.23,134.2,16.5052]
[1719052712415,7.4499,134.23,134.2,16.5052]
[1719052712729,13.9599,134.23,134.2,16.5052]
[1719052713036,6.51,134.23,134.2,16.5052]
[1719052714022,6.51,134.24,134.2,23.9564]
[1719052715314,6.51,134.24,134.2,16.5052]
[1719052715640,13.9594,134.24,134.2,16.5052]
[1719052721135,6.51,134.26,134.2,23.0152]
[1719052721741,13.9582,134.26,134.21,7.4509]
[1719052722730,13.9582,134.26,134.2,30.4665]
[1719052723118,7.4489,134.25,134.2,30.4665]
[1719052727242,7.4488,134.25,134.2,30.4665]
[1719052732946,7.4488,134.25,134.2,23.9565]
[1719052733248,7.4488,134.25,134.2,30.4665]
[1719052733650,13.9588,134.25,134.2,23.9565]
[1719052734246,13.9588,134.25,134.2,16.5052]
[1719052735538,13.9588,134.25,134.2,23.9565]
[1719052736248,51.533,134.24,134.14,15.5161]
[1719052736447,13.9624,134.19,134.14,15.5161]
[1719052736649,6.51,134.18,134.14,15.5161]
[1719052736830,6.51,134.18,134.14,22.9708]
[1719052737449,6.51,134.19,134.14,22.9708]
[1719052740676,6.51,134.19,134.15,7.4542]
[1719052742350,6.51,134.19,134.14,29.4807]
[1719052742751,6.51,134.19,134.15,7.4543]
[1719052742956,7.4517,134.2,134.15,7.4543]
[1719052743160,6.51,134.19,134.15,7.4543]
[1719052747755,6.51,134.19,134.16,0.76692033]
[1719052747955,15.1144,134.25,134.14,15.5161]
[1719052748185,13.9602,134.23,134.17,13.9628]
[1719052748855,7.4506,134.22,134.17,13.9628]
[1719052749040,13.9606,134.22,134.17,13.9628]
[1719052749463,13.9606,134.22,134.17,7.4531]
[1719052749648,13.9606,134.22,134.17,13.9631]
[1719052749852,6.51,134.22,134.18,7.4526]
[1719052750458,13.96,134.23,134.18,7.4526]
[1719052750658,13.96,134.23,134.17,13.9629]
[1719052752438,7.4505,134.22,134.17,13.9629]
[1719052752964,7.4511,134.21,134.16,7.4535]
[1719052753166,7.4511,134.21,134.16,13.9635]
[1719052753549,7.4517,134.2,134.15,7.4541]
[1719052753749,7.4517,134.2,134.15,13.9641]
[1719052755064,7.4517,134.2,134.16,6.51]
[1719052755253,6.51,134.21,134.16,6.51]
[1719052755461,13.9612,134.21,134.16,6.51]
[1719052755649,6.51,134.21,134.16,13.9632]
[1719052756156,13.9605,134.22,134.16,13.9632]
[1719052758271,7.4505,134.22,134.16,13.9632]
[1719052758455,13.9605,134.22,134.16,13.9632]
[1719052758655,7.451,134.21,134.16,13.9632]
[1719052760451,7.451,134.21,134.16,7.4532]
[1719052760646,7.451,134.21,134.16,13.9632]
[1719052762476,6.51,134.22,134.16,6.51]
[1719052762770,13.9612,134.21,134.16,6.51]
[1719052763870,13.9602,134.23,134.18,6.51]
[1719052764253,13.9602,134.23,134.18,13.9624]
[1719052764971,6.51,134.23,134.18,30.1809]
[1719052765474,7.4495,134.24,134.18,30.1809]
[1719052765656,13.9599,134.23,134.18,23.6709]
[1719052767171,6.51,134.23,134.18,23.6709]
[1719052767476,6.51,134.23,134.18,30.1809]
[1719052767855,13.9599,134.23,134.18,30.1809]
[1719052770774,13.9599,134.23,134.18,23.6709]
[1719052773476,7.4499,134.23,134.18,23.6709]
[1719052773855,7.4499,134.23,134.18,30.1809]
[1719052774974,13.9599,134.23,134.18,30.1809]
[1719052775774,6.51,134.23,134.18,30.1809]
[1719052777154,7.4495,134.24,134.19,7.4519]
[1719052777354,7.449,134.25,134.19,13.9619]
[1719052777667,13.959,134.25,134.19,13.9619]
[1719052778193,7.4493,134.24,134.19,13.9619]
[1719052780567,13.959,134.25,134.19,13.9619]
[1719052781577,7.4494,134.24,134.19,13.9619]
[1719052784281,13.959,134.25,134.19,13.9619]
[1719052786383,6.51,134.24,134.18,23.671]
[1719052786571,6.51,134.24,134.19,6.51]
[1719052786775,13.9596,134.24,134.19,6.51]
[1719052787095,13.9596,134.24,134.18,30.181]
[1719052787970,13.9596,134.24,134.19,7.4519]
[1719052788170,13.9596,134.24,134.19,13.9619]
[1719052792998,6.51,134.24,134.19,13.9619]
[1719052793322,6.51,134.24,134.2,7.4515]
[1719052795308,7.449,134.25,134.2,7.4515]
[1719052795477,6.51,134.24,134.2,7.4515]
[1719052797077,13.9603,134.23,134.18,16.2185]
[1719052797278,13.9603,134.23,134.18,23.6711]
[1719052800480,6.51,134.23,134.19,7.452]
[1719052802110,7.449,134.25,134.19,7.452]
[1719052802283,6.51,134.24,134.19,7.452]
[1719052803099,13.9593,134.24,134.19,7.452]
[1719052803277,55.91790352,134.28,134.18,16.2185]
[1719052803278,13.9606,134.22,134.18,16.2185]
[1719052803475,7.4501,134.23,134.18,16.2185]
[1719052803690,7.4501,134.23,134.18,30.1808]
[1719052803889,13.9594,134.24,134.19,7.452]
[1719052807919,13.9594,134.24,134.18,30.1809]
[1719052810616,7.4501,134.23,134.18,22.7285]
[1719052810920,13.9608,134.22,134.18,16.2185]
[1719052812125,6.51,134.22,134.18,16.2185]
[1719052812918,7.4501,134.23,134.18,23.6711]
[1719052813122,6.51,134.22,134.18,23.6711]
[1719052814002,13.9601,134.23,134.18,23.6711]
[1719052815919,29.45381857,134.28,134.19,6.51]
[1719052816121,7.4485,134.26,134.2,13.9612]
[1719052816322,13.9585,134.26,134.2,13.9612]
[1719052817504,13.9579,134.27,134.21,13.9607]
[1719052817830,20.0,134.26,134.21,13.9607]
[1719052818833,27.4484,134.26,134.21,13.9607]
[1719052819209,27.4484,134.26,134.21,6.51]
[1719052821104,7.4487,134.25,134.21,6.51]
[1719052826931,26.51,134.26,134.18,23.671]
[1719052827226,7.4502,134.23,134.19,6.51]
[1719052829534,13.9595,134.24,134.19,13.9619]
[1719052830221,6.51,134.24,134.2,7.4514]
[1719052830618,13.9588,134.25,134.2,7.4514]
[1719052830918,13.9588,134.25,134.19,13.9619]
[1719052831133,13.9588,134.25,134.2,6.51]
[1719052832019,7.4493,134.24,134.19,13.9619]
[1719052833631,7.45,134.23,134.18,30.1809]
[1719052834021,7.45,134.23,134.18,16.2185]
[1719052834333,6.51,134.22,134.18,16.2185]
[1719052835747,6.51,134.22,134.18,23.671]
[1719052838047,6.51,134.23,134.18,23.671]
[1719052839348,6.51,134.23,134.18,30.181]
[1719052839645,6.51,134.23,134.19,7.4521]
[1719052840018,7.4495,134.24,134.19,7.4521]
[1719052840744,6.51,134.23,134.19,7.4521]